fUSD/lending_fUSD_20240905
["ID","MTS","AMOUNT","RATE_DAILY","PERIOD"]
[337233031,1725518150861,-1111.69073734,0.00030909,120]
[337233032,1725518150910,-319.66875564,0.00030909,120]
[337233033,1725518150963,-1054.64585578,0.00030909,120]
[337233034,1725518151012,-944.4820305,0.00030909,120]
[337233035,1725518151063,-913.0294512,0.00030909,120]
[337233036,1725518151114,-204.98462713,0.00030909,120]
[337233037,1725518151163,-1030.79354981,0.00030909,120]
[337233038,1725518151211,-1652.27597843,0.00030909,120]
[337233039,1725518151262,-728.69540869,0.00030909,120]
[337233040,1725518151311,-2027.58330311,0.00030909,120]
[337233041,1725518151360,-648.01014777,0.00030909,120]
[337233042,1725518151411,-907.67746879,0.00030909,120]
[337233043,1725518151466,-524.87151499,0.00030909,120]
[337233044,1725518151517,-952.95142914,0.00030909,120]
[337233045,1725518151565,-157.37545031,0.00030909,120]
[337233046,1725518151615,-1223.72168784,0.00030909,120]
[337233047,1725518151662,-1937.05308432,0.00030909,120]
[337233048,1725518151709,-1428.0961609,0.00030909,120]
[337233049,1725518151756,-622.34545328,0.00030909,120]
[337233050,1725518151807,-244.12808012,0.00030909,120]
[337233051,1725518151854,-790.30938625,0.00030909,30]
[337233052,1725518151906,-2813.00062601,0.00030909,120]
[337233053,1725518151958,-187.66751225,0.00030909,120]
[337233054,1725518152009,-2117.95072131,0.00030909,120]
[337233055,1725518152060,-646.68397226,0.00030909,120]
[337233056,1725518152271,-756.0,0.00030909,120]
[337233057,1725518152323,-1067.13932347,0.00030909,120]
[337233058,1725518152377,-660.5839399,0.00030909,120]
[337233059,1725518152433,-200.66461754,0.00030909,120]
[337233060,1725518152486,-1327.0,0.00030909,120]
[337233061,1725518152539,-7177.61284317,0.00030909,31]
[337233062,1725518152591,-22656.28462989,0.00030909,30]
[337233063,1725518152644,-319.25761048,0.00030909,30]
[337233064,1725518152694,-256.98690927,0.00030909,120]
[337233065,1725518152745,-5202.40131019,0.00030909,120]
[337233066,1725518152796,-664.92212718,0.00030909,120]
[337233067,1725518152848,-200.0,0.00030909,30]
[337233068,1725518152899,-170.0,0.00030909,120]
[337233069,1725518152955,-12239.15405843,0.00030909,30]
[337233070,1725518153009,-580.0,0.00030909,120]
[337233071,1725518153065,-236.0,0.00030909,30]
[337233072,1725518153117,-500.69498209,0.00030909,120]
[337233073,1725518153169,-948.17563888,0.00030909,120]
[337233074,1725518153221,-1234.94024532,0.00030909,120]
[337233075,1725518153274,-266.95206349,0.00030909,30]
[337233076,1725518153325,-601.96202532,0.00030909,120]
[337233077,1725518153376,-634.48409535,0.00030909,120]
[337233078,1725518153434,-13098.4697572,0.00030909,120]
[337233079,1725518153487,-1169.41001468,0.00030909,120]
[337233080,1725518153537,-151.5067805,0.00030909,120]
[337233081,1725518153586,-249.54891442,0.00030909,120]
[337233082,1725518153635,-298.95110111,0.00030909,120]
[337233083,1725518153688,-539.39127762,0.00030909,120]
[337233084,1725518153741,-2677.18472151,0.00030909,30]
[337233085,1725518153794,-42500.0,0.00030909,120]
[337233086,1725518153848,-5044.0,0.00030909,30]
[337233087,1725518153902,-7334.1579,0.00030909,30]
[337233088,1725518153954,-261.91574474,0.00030909,30]
[337233089,1725518154004,-170.54215839,0.00030909,30]
[337233090,1725518154055,-150.0,0.00030909,30]
[337233091,1725518154107,-150.0,0.00030909,30]
[337233092,1725518154159,-150.0,0.00030909,30]
[337233093,1725518154214,-150.0,0.00030909,30]
[337233094,1725518154264,-150.0,0.00030909,30]
[337233095,1725518154316,-150.0,0.00030909,30]
[337233096,1725518154367,-216.195912,0.00030909,30]
[337233097,1725518154421,-150.0,0.00030909,30]
[337233098,1725518154477,-150.0,0.00030909,30]
[337233099,1725518154532,-287.471533,0.00030909,30]
[337233100,1725518154587,-5531.21,0.00030909,30]
[337233101,1725518154642,-5531.21,0.00030909,32]
[337233102,1725518154694,-5531.21,0.00030909,34]
[337233103,1725518154750,-5531.21,0.00030909,36]
[337233104,1725518154805,-5531.21,0.00030909,38]
[337233105,1725518154856,-5531.21,0.00030909,40]
[337233106,1725518154914,-5531.21,0.00030909,40]
[337233107,1725518154968,-5531.21,0.00030909,40]
[337233108,1725518155020,-5531.21,0.00030909,40]
[337233109,1725518155070,-5531.41657548,0.00030909,40]
[337233114,1725518566385,413.64,0.00011874,2]
[337233116,1725518971323,18371.0,0.0001,2]
[337233121,1725519031958,-570.0,0.00013,2]
[337233133,1725519037913,-30.0,0.00013,2]
[337233134,1725519037923,-487.67269646,0.0001358,2]
[337233135,1725519037937,-2278.87456502,0.0001358,2]
[337233136,1725519038143,-86.08153852,0.0001358,2]
[337233137,1725519038153,-250.0,0.00013702,2]
[337233138,1725519038163,-150.0,0.00013726,2]
[337233139,1725519038172,-279.69,0.00013738,2]
[337233140,1725519038181,-250.0,0.00013738,2]
[337233141,1725519038191,-300.0,0.0001374,2]
[337233142,1725519038201,-500.0,0.00013741,2]
[337233143,1725519038210,-1291.66,0.00013741,2]
[337233144,1725519038219,-500.0,0.00013741,2]
[337233145,1725519038231,-500.0,0.00013741,2]
[337233146,1725519038241,-500.0,0.00013741,2]
[337233147,1725519038251,-500.0,0.00013741,2]
[337233148,1725519038261,-346.7948878,0.00013741,2]
[337233149,1725519038270,-500.0,0.00013741,2]
[337233150,1725519038279,-500.0,0.00013741,2]
[337233151,1725519038289,-537.43,0.00013741,2]
[337233152,1725519038299,-509.72532344,0.00013741,2]
[337233153,1725519038308,-500.0,0.00013741,2]
[337233154,1725519038317,-500.0,0.00013741,2]
[337233155,1725519038326,-500.0,0.00013741,2]
[337233156,1725519038335,-500.0,0.00013741,2]
[337233157,1725519038345,-500.0,0.00013741,2]
[337233158,1725519038355,-500.0,0.00013741,2]
[337233159,1725519038364,-500.0,0.00013741,2]
[337233160,1725519038374,-1242.04,0.00013741,2]
[337233161,1725519038383,-500.0,0.00013741,2]
[337233162,1725519038392,-853.44,0.00013741,2]
[337233163,1725519038402,-500.0,0.00013741,2]
[337233164,1725519038411,-500.0,0.00013741,2]
[337233165,1725519038421,-520.7,0.00013741,2]
[337233166,1725519038430,-959.99,0.00013741,2]
[337233167,1725519038440,-725.63,0.00013741,2]
[337233168,1725519038449,-1437.22,0.00013741,2]
[337233169,1725519038458,-525.13316581,0.00013741,2]
[337233171,1725519038468,-500.0,0.00013741,2]
[337233173,1725519038477,-500.0,0.00013741,2]
[337233175,1725519038487,-500.0,0.00013741,2]
[337233178,1725519038496,-500.0,0.00013741,2]
[337233181,1725519038505,-723.77,0.00013741,2]
[337233184,1725519038515,-500.0,0.00013741,2]
[337233187,1725519038523,-500.0,0.00013741,2]
[337233190,1725519038533,-500.0,0.00013741,2]
[337233192,1725519038543,-1027.88,0.00013741,2]
[337233194,1725519038552,-500.0,0.00013741,2]
[337233196,1725519038562,-500.0,0.00013741,2]
[337233198,1725519038572,-1175.85,0.00013741,2]
[337233200,1725519038582,-744.98,0.00013741,2]
[337233203,1725519038592,-1094.62,0.00013741,2]
[337233205,1725519038602,-500.0,0.00013741,2]
[337233207,1725519038612,-500.0,0.00013741,2]
[337233209,1725519038621,-500.0,0.00013741,2]
[337233211,1725519038631,-917.45,0.00013741,2]
[337233213,1725519038640,-500.0,0.00013741,2]
[337233215,1725519038650,-500.0,0.00013741,2]
[337233217,1725519038660,-500.0,0.00013741,2]
[337233219,1725519038669,-500.0,0.00013741,2]
[337233220,1725519038678,-500.0,0.00013741,2]
[337233221,1725519038690,-970.77,0.00013741,2]
[337233222,1725519038700,-500.0,0.00013741,2]
[337233223,1725519038709,-500.0,0.00013741,2]
[337233224,1725519038718,-500.0,0.00013741,2]
[337233225,1725519038729,-500.0,0.00013741,2]
[337233226,1725519038738,-1000.0,0.00013742,2]
[337233227,1725519038748,-250.0,0.00013745,2]
[337233228,1725519038758,-162.56,0.00013769,2]
[337233229,1725519038768,-203.82,0.00013824,2]
[337233230,1725519038777,-158.73,0.00013852,2]
[337233231,1725519038787,-499.99,0.00013852,2]
[337233232,1725519038798,-422.04,0.00014041,2]
[337233233,1725519038807,-422.04,0.00014041,2]
[337233234,1725519038817,-422.04,0.00014041,2]
[337233235,1725519038826,-422.04,0.00014041,2]
[337233236,1725519038836,-165.14,0.00014041,2]
[337233237,1725519038845,-413.64,0.00014138,2]
[337233238,1725519038857,-422.04,0.000142,2]
[337233239,1725519038867,-422.04,0.000142,2]
[337233240,1725519038876,-422.04,0.000142,2]
[337233241,1725519038885,-422.04,0.000142,2]
[337233242,1725519038894,-422.04,0.000142,2]
[337233243,1725519038904,-422.04,0.000142,2]
[337233244,1725519038913,-422.04,0.000142,2]
[337233245,1725519038922,-422.04,0.000142,2]
[337233246,1725519038933,-422.04,0.000142,2]
[337233247,1725519038944,-422.04,0.000142,2]
[337233248,1725519038953,-422.04,0.000144,2]
[337233249,1725519038962,-422.04,0.000144,2]
[337233250,1725519038971,-500.0,0.00014433,2]
[337233251,1725519038982,-1291.66,0.00014433,2]
[337233252,1725519038991,-500.0,0.00014433,2]
[337233253,1725519039001,-500.0,0.00014433,2]
[337233254,1725519039010,-500.0,0.00014433,2]
[337233255,1725519039020,-500.0,0.00014433,2]
[337233256,1725519039029,-500.0,0.00014433,2]
[337233257,1725519039038,-500.0,0.00014433,2]
[337233258,1725519039047,-537.43,0.00014433,2]
[337233259,1725519039056,-456.23903089,0.00014433,2]
[337233260,1725519039065,-500.0,0.00014433,2]
[337233261,1725519039076,-500.0,0.00014433,2]
[337233262,1725519039086,-500.0,0.00014433,2]
[337233263,1725519039095,-500.0,0.00014433,2]
[337233264,1725519039105,-500.0,0.00014433,2]
[337233265,1725519039114,-500.0,0.00014433,2]
[337233266,1725519039123,-1242.04,0.00014433,2]
[337233267,1725519039132,-500.0,0.00014433,2]
[337233268,1725519039142,-853.44,0.00014433,2]
[337233269,1725519039151,-500.0,0.00014433,2]
[337233270,1725519039160,-500.0,0.00014433,2]
[337233271,1725519039170,-520.7,0.00014433,2]
[337233272,1725519039179,-959.99,0.00014433,2]
[337233273,1725519039189,-725.63,0.00014433,2]
[337233274,1725519039199,-1437.22,0.00014433,2]
[337233275,1725519039209,-500.0,0.00014433,2]
[337233276,1725519039219,-500.0,0.00014433,2]
[337233277,1725519039229,-500.0,0.00014433,2]
[337233278,1725519039238,-500.0,0.00014433,2]
[337233279,1725519039247,-723.77,0.00014433,2]
[337233280,1725519039256,-500.0,0.00014433,2]
[337233281,1725519039266,-500.0,0.00014433,2]
[337233282,1725519039275,-500.0,0.00014433,2]
[337233283,1725519039285,-1027.88,0.00014433,2]
[337233284,1725519039295,-500.0,0.00014433,2]
[337233285,1725519039304,-500.0,0.00014433,2]
[337233286,1725519039315,-1175.85,0.00014433,2]
[337233287,1725519039325,-744.98,0.00014433,2]
[337233288,1725519039336,-1094.62,0.00014433,2]
[337233289,1725519039347,-643.76981286,0.00014433,2]
[337233290,1725519039359,-500.0,0.00014433,2]
[337233291,1725519039368,-500.0,0.00014433,2]
[337233292,1725519039378,-917.45,0.00014433,2]
[337233293,1725519039387,-500.0,0.00014433,2]
[337233294,1725519039396,-500.0,0.00014433,2]
[337233295,1725519039406,-513.36958853,0.00014433,2]
[337233296,1725519039415,-500.0,0.00014433,2]
[337233297,1725519039425,-500.0,0.00014433,2]
[337233298,1725519039435,-970.77,0.00014433,2]
[337233299,1725519039447,-500.0,0.00014433,2]
[337233300,1725519039456,-500.0,0.00014433,2]
[337233301,1725519039465,-500.0,0.00014433,2]
[337233302,1725519039476,-422.04,0.000148,2]
[337233303,1725519039485,-422.04,0.000148,2]
[337233304,1725519039494,-4888.83715945,0.000148,2]
[337233305,1725519039503,-210.0,0.0001483,2]
[337233306,1725519039512,-1503.4776,0.00014888,2]
[337233307,1725519039521,-10132.9763829,0.00014889,2]
[337233308,1725519039531,-1479.9066,0.0001489,2]
[337233309,1725519039541,-10132.97638284,0.0001489,2]
[337233310,1725519039550,-10132.97638284,0.00014891,2]
[337233311,1725519039559,-10132.97638284,0.00014893,2]
[337233312,1725519039570,-10132.97638284,0.00014894,2]
[337233313,1725519039579,-10132.97638284,0.00014895,2]
[337233314,1725519039588,-10132.97638284,0.00014896,2]
[337233315,1725519039598,-10132.97638284,0.00014898,2]
[337233316,1725519039607,-10132.97638284,0.00014899,2]
[337233317,1725519039616,-307.84685495,0.000149,2]
[337233318,1725519039625,-463.2413,0.000149,2]
[337233319,1725519039634,-10132.97638284,0.000149,2]
[337233320,1725519039643,-307.84685495,0.000149,2]
[337233321,1725519039653,-500.0,0.00014973,2]
[337233322,1725519039664,-1023.13574665,0.00014978,3]
[337233323,1725519039674,-204.62714933,0.00014979,3]
[337233324,1725519039683,-1259.66,0.00014987,2]
[337233325,1725519039694,-500.0,0.00014987,2]
[337233326,1725519039703,-1130.98,0.00014987,2]
[337233327,1725519039712,-1482.72,0.00014987,2]
[337233328,1725519039722,-901.35,0.00014987,2]
[337233329,1725519039732,-501.32587737,0.00014987,2]
[337233330,1725519039741,-1496.1,0.00014987,2]
[337233331,1725519039751,-500.0,0.00014987,2]
[337233332,1725519039761,-500.0,0.00014987,2]
[337233333,1725519039770,-754.19,0.00014987,2]
[337233334,1725519039780,-500.0,0.00014987,2]
[337233335,1725519039791,-639.57,0.00014987,2]
[337233336,1725519039801,-639.57,0.00014987,2]
[337233337,1725519039811,-527.94297632,0.00014987,2]
[337233338,1725519039820,-1088.44,0.00014987,2]
[337233339,1725519039829,-229.61859805,0.00014987,2]
[337233340,1725519039839,-500.0,0.00014987,2]
[337233341,1725519039850,-202.51041942,0.00014987,2]
[337233342,1725519039861,-1427.25,0.00014987,2]
[337233343,1725519039870,-599.93065135,0.00014987,2]
[337233344,1725519039880,-587.27,0.00014987,2]
[337233345,1725519039889,-500.0,0.00014987,2]
[337233346,1725519039899,-500.0,0.00014987,2]
[337233347,1725519039908,-500.0,0.00014987,2]
[337233348,1725519039917,-592.66594208,0.00014987,2]
[337233349,1725519039927,-500.0,0.00014987,2]
[337233350,1725519039936,-1617.5,0.00014987,2]
[337233351,1725519039946,-1617.5,0.00014987,2]
[337233352,1725519039955,-695.38,0.00014987,2]
[337233353,1725519039965,-500.0,0.00014987,2]
[337233354,1725519039974,-500.0,0.00014987,2]
[337233355,1725519039985,-613.22996081,0.00014987,2]
[337233356,1725519039994,-500.0,0.00014987,2]
[337233357,1725519040004,-500.0,0.00014987,2]
[337233358,1725519040013,-192.31477219,0.00014987,2]
[337233359,1725519040023,-1426.33,0.00014987,2]
[337233360,1725519040032,-1426.33,0.00014987,2]
[337233361,1725519040042,-2702.65,0.00014987,2]
[337233362,1725519040052,-500.0,0.00014987,2]
[337233363,1725519040061,-500.0,0.00014987,2]
[337233364,1725519040071,-500.0,0.00014987,2]
[337233365,1725519040080,-500.0,0.00014987,2]
[337233366,1725519040090,-500.0,0.00014987,2]
[337233367,1725519040099,-500.0,0.00014987,2]
[337233368,1725519040108,-500.0,0.00014987,2]
[337233369,1725519040118,-1473.37,0.00014987,2]
[337233370,1725519040127,-1473.37,0.00014987,2]
[337233371,1725519040136,-500.0,0.00014987,2]
[337233372,1725519040145,-502.90982166,0.00014987,2]
[337233373,1725519040155,-768.66,0.00014987,2]
[337233374,1725519040164,-768.66,0.00014987,2]
[337233375,1725519040174,-500.0,0.00014987,2]
[337233376,1725519040183,-507.92176443,0.00014987,2]
[337233377,1725519040397,-555.22328573,0.00014987,2]
[337233378,1725519040406,-1223.93,0.00014987,2]
[337233379,1725519040416,-500.0,0.00014987,2]
[337233380,1725519040425,-1173.1,0.00014987,2]
[337233381,1725519040434,-1173.1,0.00014987,2]
[337233382,1725519040443,-1335.83,0.00014987,2]
[337233383,1725519040453,-500.0,0.00014987,2]
[337233384,1725519040463,-500.0,0.00014987,2]
[337233385,1725519040472,-983.31,0.00014987,2]
[337233386,1725519040483,-1552.52,0.00014987,2]
[337233387,1725519040491,-1552.52,0.00014987,2]
[337233388,1725519040501,-1292.97,0.00014987,2]
[337233389,1725519040510,-500.0,0.00014987,2]
[337233390,1725519040519,-500.0,0.00014987,2]
[337233391,1725519040529,-1636.9,0.00014987,2]
[337233392,1725519040539,-1636.9,0.00014987,2]
[337233393,1725519040551,-528.2,0.00014987,2]
[337233394,1725519040560,-528.2,0.00014987,2]
[337233395,1725519040570,-1404.81,0.00014987,2]
[337233396,1725519040580,-1259.66,0.00014988,2]
[337233397,1725519040589,-500.0,0.00014988,2]
[337233398,1725519040599,-1130.98,0.00014988,2]
[337233399,1725519040609,-1482.72,0.00014988,2]
[337233400,1725519040621,-901.35,0.00014988,2]
[337233401,1725519040631,-1496.1,0.00014988,2]
[337233402,1725519040640,-500.0,0.00014988,2]
[337233403,1725519040650,-500.0,0.00014988,2]
[337233404,1725519040660,-754.19,0.00014988,2]
[337233405,1725519040671,-595.76729053,0.00014988,2]
[337233406,1725519040680,-1088.44,0.00014988,2]
[337233407,1725519040689,-500.0,0.00014988,2]
[337233408,1725519040699,-1427.25,0.00014988,2]
[337233409,1725519040708,-587.27,0.00014988,2]
[337233410,1725519040717,-512.23605459,0.00014988,2]
[337233411,1725519040727,-500.0,0.00014988,2]
[337233412,1725519040736,-695.38,0.00014988,2]
[337233413,1725519040746,-500.0,0.00014988,2]
[337233414,1725519040755,-500.0,0.00014988,2]
[337233415,1725519040764,-500.0,0.00014988,2]
[337233416,1725519040773,-2702.65,0.00014988,2]
[337233417,1725519040783,-500.0,0.00014988,2]
[337233418,1725519040793,-500.0,0.00014988,2]
[337233419,1725519040803,-1223.93,0.00014988,2]
[337233420,1725519040812,-500.0,0.00014988,2]
[337233421,1725519040822,-1335.83,0.00014988,2]
[337233422,1725519040831,-983.31,0.00014988,2]
[337233423,1725519040842,-1292.97,0.00014988,2]
[337233424,1725519040855,-1404.81,0.00014988,2]
[337233425,1725519040865,-437.99788186,0.00014989,2]
[337233426,1725519040874,-1221.29,0.00014989,2]
[337233427,1725519040884,-1514.96,0.00014989,2]
[337233428,1725519040894,-1365.61,0.00014989,2]
[337233429,1725519040904,-500.0,0.00014989,2]
[337233430,1725519040913,-500.0,0.00014989,2]
[337233431,1725519040924,-1138.9,0.00014989,2]
[337233432,1725519040935,-588.77,0.00014989,2]
[337233433,1725519040945,-797.97,0.00014989,2]
[337233434,1725519040954,-1403.34,0.00014989,2]
[337233435,1725519040964,-1388.67,0.00014989,2]
[337233436,1725519040973,-1385.42,0.00014989,2]
[337233437,1725519040984,-1451.33,0.00014989,2]
[337233438,1725519040993,-1451.09,0.00014989,2]
[337233439,1725519041003,-1218.68,0.00014989,2]
[337233440,1725519041012,-1505.89,0.00014989,2]
[337233441,1725519041023,-1481.12,0.00014989,2]
[337233442,1725519041032,-500.0,0.00014989,2]
[337233443,1725519041042,-500.0,0.00014989,2]
[337233444,1725519041051,-1721.99,0.00014989,2]
[337233445,1725519041061,-210.0,0.0001499,2]
[337233446,1725519041071,-1651.83,0.00014991,2]
[337233447,1725519041080,-500.0,0.00014991,2]
[337233448,1725519041090,-1363.44,0.00014991,2]
[337233449,1725519041099,-1237.0,0.00014991,2]
[337233450,1725519041108,-1214.97,0.00014991,2]
[337233451,1725519041118,-711.71,0.00014991,2]
[337233452,1725519041127,-261.16682359,0.00014991,2]
[337233453,1725519041137,-620.93499084,0.00014991,2]
[337233454,1725519041147,-500.0,0.00014991,2]
[337233455,1725519041156,-639.57,0.00014991,2]
[337233456,1725519041165,-1742.86,0.00014991,2]
[337233457,1725519041175,-500.0,0.00014991,2]
[337233458,1725519041184,-1617.5,0.00014991,2]
[337233459,1725519041193,-500.0,0.00014991,2]
[337233460,1725519041203,-1426.33,0.00014991,2]
[337233461,1725519041212,-500.0,0.00014991,2]
[337233462,1725519041222,-1419.01,0.00014991,2]
[337233463,1725519041233,-500.0,0.00014991,2]
[337233464,1725519041243,-500.0,0.00014991,2]
[337233465,1725519041253,-1473.37,0.00014991,2]
[337233466,1725519041262,-768.66,0.00014991,2]
[337233467,1725519041271,-1173.1,0.00014991,2]
[337233468,1725519041280,-500.0,0.00014991,2]
[337233469,1725519041290,-1198.85,0.00014991,2]
[337233470,1725519041299,-1552.52,0.00014991,2]
[337233471,1725519041308,-500.0,0.00014991,2]
[337233472,1725519041317,-1636.9,0.00014991,2]
[337233473,1725519041326,-528.2,0.00014991,2]
[337233474,1725519041335,-500.0,0.00014992,2]
[337233475,1725519041344,-500.0,0.00014992,2]
[337233476,1725519041354,-500.0,0.00014992,2]
[337233477,1725519041363,-500.0,0.00014992,2]
[337233478,1725519041372,-500.0,0.00014992,2]
[337233479,1725519041381,-500.0,0.00014992,2]
[337233480,1725519041393,-500.0,0.00014992,2]
[337233481,1725519041402,-1291.66,0.00014992,2]
[337233482,1725519041411,-1291.66,0.00014992,2]
[337233483,1725519041421,-1291.66,0.00014992,2]
[337233484,1725519041432,-1291.66,0.00014992,2]
[337233485,1725519041441,-1291.66,0.00014992,2]
[337233486,1725519041450,-1291.66,0.00014992,2]
[337233487,1725519041459,-1291.66,0.00014992,2]
[337233488,1725519041469,-500.0,0.00014992,2]
[337233489,1725519041479,-500.0,0.00014992,2]
[337233490,1725519041488,-500.0,0.00014992,2]
[337233491,1725519041498,-500.0,0.00014992,2]
[337233492,1725519041507,-500.0,0.00014992,2]
[337233493,1725519041516,-500.0,0.00014992,2]
[337233494,1725519041527,-500.0,0.00014992,2]
[337233495,1725519041536,-500.0,0.00014992,2]
[337233496,1725519041545,-500.0,0.00014992,2]
[337233497,1725519041554,-500.0,0.00014992,2]
[337233498,1725519041563,-500.0,0.00014992,2]
[337233499,1725519041573,-517.51882588,0.00014992,2]
[337233500,1725519041583,-500.0,0.00014992,2]
[337233501,1725519041592,-164.0619586,0.00014992,2]
[337233502,1725519041601,-500.0,0.00014992,2]
[337233503,1725519041610,-500.0,0.00014992,2]
[337233504,1725519041619,-500.0,0.00014992,2]
[337233505,1725519041628,-500.94024161,0.00014992,2]
[337233506,1725519041637,-500.0,0.00014992,2]
[337233507,1725519041646,-503.0079303,0.00014992,2]
[337233508,1725519041655,-594.54003957,0.00014992,2]
[337233509,1725519041664,-537.43,0.00014992,2]
[337233510,1725519041674,-537.43,0.00014992,2]
[337233511,1725519041684,-537.43,0.00014992,2]
[337233512,1725519041694,-537.43,0.00014992,2]
[337233513,1725519041703,-537.43,0.00014992,2]
[337233514,1725519041713,-537.43,0.00014992,2]
[337233515,1725519041723,-537.43,0.00014992,2]
[337233516,1725519041734,-500.0,0.00014992,2]
[337233517,1725519041743,-500.0,0.00014992,2]
[337233518,1725519041752,-212.94308574,0.00014992,2]
[337233519,1725519041761,-500.0,0.00014992,2]
[337233520,1725519041771,-500.0,0.00014992,2]
[337233521,1725519041780,-500.0,0.00014992,2]
[337233522,1725519041790,-500.0,0.00014992,2]
[337233523,1725519041799,-500.0,0.00014992,2]
[337233524,1725519041808,-500.0,0.00014992,2]
[337233525,1725519041819,-500.0,0.00014992,2]
[337233526,1725519041831,-500.0,0.00014992,2]
[337233527,1725519041842,-500.0,0.00014992,2]
[337233528,1725519041853,-500.0,0.00014992,2]
[337233529,1725519041862,-500.0,0.00014992,2]
[337233530,1725519041871,-500.0,0.00014992,2]
[337233531,1725519041883,-500.0,0.00014992,2]
[337233532,1725519041895,-500.0,0.00014992,2]
[337233533,1725519041904,-515.15907452,0.00014992,2]
[337233534,1725519041914,-500.0,0.00014992,2]
[337233535,1725519041923,-500.0,0.00014992,2]
[337233536,1725519041935,-500.0,0.00014992,2]
[337233537,1725519041944,-500.0,0.00014992,2]
[337233538,1725519041954,-500.0,0.00014992,2]
[337233539,1725519041963,-500.0,0.00014992,2]
[337233540,1725519041972,-500.0,0.00014992,2]
[337233541,1725519041983,-500.0,0.00014992,2]
[337233542,1725519041992,-500.0,0.00014992,2]
[337233543,1725519042001,-500.0,0.00014992,2]
[337233544,1725519042010,-500.0,0.00014992,2]
[337233545,1725519042020,-500.0,0.00014992,2]
[337233546,1725519042030,-500.0,0.00014992,2]
[337233547,1725519042039,-500.0,0.00014992,2]
[337233548,1725519042048,-1242.04,0.00014992,2]
[337233549,1725519042058,-1242.04,0.00014992,2]
[337233550,1725519042068,-1242.04,0.00014992,2]
[337233551,1725519042077,-1242.04,0.00014992,2]
[337233552,1725519042087,-1242.04,0.00014992,2]
[337233553,1725519042096,-1242.04,0.00014992,2]
[337233554,1725519042105,-1242.04,0.00014992,2]
[337233555,1725519042114,-500.0,0.00014992,2]
[337233556,1725519042123,-500.0,0.00014992,2]
[337233557,1725519042133,-500.0,0.00014992,2]
[337233558,1725519042142,-500.0,0.00014992,2]
[337233559,1725519042151,-500.0,0.00014992,2]
[337233560,1725519042160,-500.0,0.00014992,2]
[337233561,1725519042170,-500.0,0.00014992,2]
[337233562,1725519042179,-853.44,0.00014992,2]
[337233563,1725519042189,-853.44,0.00014992,2]
[337233564,1725519042198,-500.0,0.00014992,2]
[337233565,1725519042207,-853.44,0.00014992,2]
[337233566,1725519042216,-500.0,0.00014992,2]
[337233567,1725519042225,-853.44,0.00014992,2]
[337233568,1725519042235,-853.44,0.00014992,2]
[337233569,1725519042244,-853.44,0.00014992,2]
[337233570,1725519042253,-853.44,0.00014992,2]
[337233571,1725519042262,-500.0,0.00014992,2]
[337233572,1725519042272,-500.0,0.00014992,2]
[337233573,1725519042281,-540.59603296,0.00014992,2]
[337233574,1725519042290,-500.0,0.00014992,2]
[337233575,1725519042300,-500.0,0.00014992,2]
[337233576,1725519042309,-500.0,0.00014992,2]
[337233577,1725519042318,-500.0,0.00014992,2]
[337233578,1725519042327,-500.0,0.00014992,2]